Cogmind - Beta 16 @@@ ROGUE MODE // 2025.10.24 @ 20:16:26 Player: Moodge Result: Destroyed by G-34 Mercenary with Small Laser Performance ------------- Evolutions (0) 0 Regions Visited (1) 200 Robots Destroyed (12) 60 Value Destroyed (372) 372 Prototype IDs (3) 60 Alien Tech Used (0) 0 Bonus (0) 0 TOTAL SCORE: 692 Bonus ------- None Cogmind --------- Core Integrity 0/250 Matter 287/300 Energy 250/250 System Corruption 0% Temperature Cool (6) Movement Walking (120) Location -10/Materials Parts ------- > --- POWER (1) -------- Ion Engine > --- PROPULSION (2) --- Aluminum Leg > --- UTILITY (2) ------ (None) > --- WEAPON (2) ------- (None) > --- INVENTORY (5) ---- Terrain Scanner Terrain Scan Processor Targeting Computer Peak State ------------ > --- POWER ------------ Light Ion Engine > --- PROPULSION ------- Aluminum Leg Aluminum Leg > --- UTILITY ---------- Small Storage Unit Sensor Array > --- WEAPON ----------- Small Laser > --- INVENTORY -------- Ion Engine Light Ion Engine Terrain Scanner Terrain Scan Processor Targeting Computer [Rating: 6] Favorites ----------- Power Light Ion Engine Engine Light Ion Engine Propulsion Aluminum Leg Treads Light Treads Leg Aluminum Leg Utility Small Storage Unit Device Sensor Array Storage Small Storage Unit Weapon Small Laser Energy Gun Small Laser Launcher Grenade Launcher Build | -11 -10 ------- Run | Yrd Mat Slots Evolved . | . . Power . | . . Propulsion . | . . Utility . | . . Weapon . | . . Parts Attached 13 | 6 7 Power 3 | 1 2 Engine 3 | 1 2 Core . | . . Reactor . | . . Propulsion 4 | 3 1 Treads 2 | 2 . Leg 2 | 1 1 Wheel . | . . Hover . | . . Flight . | . . Utility 3 | 1 2 Device 1 | . 1 Storage 2 | 1 1 Processor . | . . Hackware . | . . Protection . | . . Artifact . | . . Weapon 3 | 1 2 Energy Gun 2 | 1 1 Energy Cannon . | . . Ballistic Gun . | . . Ballistic Cannon . | . . Launcher 1 | . 1 Special Weapon . | . . Impact Weapon . | . . Slashing Weapon . | . . Piercing Weapon . | . . Special Melee Weapon . | . . Unidentified Prototypes . | . . Parts Lost 7 | . 7 Power 2 | . 2 Propulsion 1 | . 1 Utility 1 | . 1 Weapon 3 | . 3 Highest Loss Streak 4 | . 4 To Critical Strikes . | . . Average Backups 3 | 2 4 Power . | . . Propulsion . | 1 . Utility 2 | . 2 Weapon . | . . Tool/Special . | . . Unused Backups 3 | . 3 Power . | . . Propulsion . | . . Utility 3 | . 3 Weapon . | . . Tool/Special . | . . Average Slot Usage (%) 73 | . 73 Engine 10 | . 10 Treads 11 | . 11 Leg 16 | . 16 Device 7 | . 7 Storage 13 | . 13 Energy Gun 11 | . 11 Launcher 1 | . 1 Peak Build Rating 6 | 5 6 Average Rating 5 | 3 5 On Entrance 2 | . 5 Avg Prop Armor Cover (%) . | . . Naked Turns . | . . Heaviest Build 85 | 10 85 Greatest Support 40 | 40 40 Greatest Overweight (x) 4 | . 4 Average Overweight (x) . | . . Largest Inventory Capacity 25 | 8 25 Average Capacity 14 | 7 15 Most Carried 8 | 5 8 Average Carried 3 | 2 4 Final Capacity 8 | 8 5 Final Carried 3 | 2 3 Class Distribution -------------------- 100% | Mutant Dominant Class ---------------- Mutant | -10/Materials Resources | -11 -10 ----------- Run | Yrd Mat Matter Collected 390 | 204 186 Remotely . | . . Salvage Created 353 | . 353 Parts 26 | . 26 Haulers Intercepted . | . . Recyclers Shooed . | . . Parts Field Recycled . | . . Retrieved Matter . | . . Parts Self-Destructed . | . . Prevented . | . . Parts Restored . | . . Kills | -11 -10 ------- Run | Yrd Mat Combat Hostiles Destroyed 10 | . 10 Guns 5 | . 5 AOE 5 | . 5 Classes Destroyed 3 | . 3 Worker 1 | . 1 Builder 1 | . 1 Grunt 10 | . 10 Best Kill Streak 7 | . 7 Combat Bots Only 5 | . 5 Max Kills in Single Turn 2 | . 2 Gunslinging . | . . Exploded 2 | . 2 Melee . | . . Uniques/NPCs Destroyed . | . . Combat | -11 -10 -------- Run | Yrd Mat Hostile Shots Fired 76 | . 76 Missed 15 | . 15 Hits 61 | . 61 Projectile 61 | . 61 Critical Strikes 1 | . 1 Damage Taken 959 | . 959 Core 257 | . 257 Absorbed by Shields . | . . Regen/Repaired (Parts) 15 | . 15 Core Remaining (%) 100 | 100 . Volleys Fired 51 | . 51 Largest 1 | . 1 Hottest 40 | . 40 Shots Fired 51 | . 51 Gun 41 | . 41 Cannon . | . . Launcher 10 | . 10 Special . | . . Kinetic . | . . Thermal 32 | . 32 Explosive 10 | . 10 Electromagnetic 9 | . 9 Robot Hit Streak 6 | . 6 Robot Miss Streak 2 | . 2 Penetration Max . | . . Secondary Targets . | . . Shots Hit Robots 32 | . 32 Core Hits 29 | . 29 Critical Kills . | . . Critical Parts Destroyed . | . . Critical Strikes 1 | . 1 Corrupt 1 | . 1 Melee Attacks . | . . Impact . | . . Slashing . | . . Piercing . | . . Sneak Attacks . | . . Combat Hostiles . | . . Follow-up Attacks . | . . Damage Inflicted 845 | . 845 Guns 343 | . 343 Cannons . | . . Explosions 484 | . 484 Melee . | . . Ramming 18 | . 18 Kinetic . | . . Thermal 251 | . 251 Explosive 484 | . 484 Electromagnetic 92 | . 92 Impact . | . . Slashing . | . . Piercing . | . . Highest Corruption . | . . Average Corruption . | . . Corruption Purged . | . . Corruption Blocked . | . . Overload Shots . | . . Overflow Damage 31 | . 31 Projectiles . | . . Explosions 31 | . 31 Melee . | . . Knockbacks 1 | . 1 Impact 1 | . 1 Kinetic . | . . Secondary . | . . Self-Inflicted Damage 133 | . 133 Shots 5 | . 5 Rammed 2 | . 2 Targets Rammed 5 | . 5 Kicked 3 | . 3 Crushed . | . . Highest Temperature 72 | . 72 Average Temperature 18 | . 18 Received Heat Transfer 477 | . 477 Siege Activations . | . . Martial Activations . | . . Shielding Activations . | . . Robots Disrupted . | . . Combat Hostiles . | . . Robots Corrupted . | . . Combat Hostiles . | . . Parts Fried . | . . Impact Corruptions . | . . Robots Melted . | . . Combat Hostiles . | . . Parts Melted . | . . Heat Transferred 575 | . 575 Parts Sabotaged . | . . Parts Stolen . | . . Parts Stripped . | . . Power Chain Reactions . | . . Alert | -11 -10 ------- Run | Yrd Mat Maximum Alert Level . | . . Low Security (%) 100 | 100 100 Level 1 . | . . Level 2 . | . . Level 3 . | . . Level 4 . | . . Level 5 . | . . High Security . | . . Max Security . | . . Peak Influence 171 | . 171 Initial . | . . Average 56 | . 60 Influence Increases 308 | . 308 Destroy 0b10 Robot/C 200 | . 200 Destroy 0b10 Robot/NC 10 | . 10 Destroy Leader 30 | . 30 Successful Hack 8 | . 8 Destroy Structure 45 | . 45 Lose Combat Pursuer 15 | . 15 Influence Decreases 308 | . 308 Time Decay 268 | . 268 Lost Part 40 | . 40 Squads Dispatched 1 | . 1 Investigation . | . . Extermination . | . . Reinforcement 1 | . 1 Assault . | . . Garrison . | . . Intercept . | . . Searches Triggered . | . . Construction Impeded . | . . Haulers Reinforced . | . . Active Scanning Responses . | . . Cargo Convoy Interrupts . | . . Stealth | -11 -10 --------- Run | Yrd Mat Distress Signals 3 | . 3 Communications Jammed . | . . Distress Signals . | . . Times Spotted 18 | . 18 Peak Tracking Total 4 | . 4 Tactical Retreats 1 | . 1 Traps | -11 -10 ------- Run | Yrd Mat Traps Triggered . | . . Indirectly . | . . Trap Hack Attempts . | . . Triggered . | . . Disarmed . | . . Reprogrammed . | . . Reused . | . . Traps Extracted . | . . Installed . | . . Triggered . | . . Machines | -11 -10 ---------- Run | Yrd Mat Machines Disabled . | . . Max in Single Turn . | . . Machines Repaired . | . . Machines Dismantled . | . . Machines Sabotaged . | . . Overloaded Fab Kills . | . . Hacking | -11 -10 --------- Run | Yrd Mat Machines Accessed 5 | . 5 Terminals 3 | . 3 Fabricators . | . . Repair Stations 1 | . 1 Recycling Units 1 | . 1 Scanalyzers . | . . Garrison Access . | . . Total Hacks 7 | . 7 Successful 6 | . 6 Failed 1 | . 1 Catastrophic . | . . Database Lockouts . | . . Manual . | . . Terminals 4 | . 4 Fabricators . | . . Repair Stations 2 | . 2 Recycling Units 1 | . 1 Scanalyzers . | . . Garrison Access . | . . Terminal Hacks 3 | . 3 Prototype ID Bank 2 | . 2 Zone Layout 1 | . 1 Fabricator Hacks . | . . Repair Station Hacks 2 | . 2 Scan Component 1 | . 1 Repair 1 | . 1 Recycling Unit Hacks 1 | . 1 Report Inventory 1 | . 1 Scanalyzer . | . . Garrison Access Hacks . | . . Unauthorized Hacks . | . . Terminals . | . . Fabricators . | . . Repair Stations . | . . Recycling Units . | . . Scanalyzers . | . . Garrison Access . | . . Data Cores Recovered . | . . Used . | . . Hacking Detections 1 | . 1 Full Trace Events . | . . Feedback Events . | . . Feedback Blocked . | . . Robot Schematics Acquired . | . . Robots Built . | . . Authchips . | . . Time . | . . Total Robot Build Rating . | . . Part Schematics Acquired . | . . Parts Built . | . . Authchips . | . . Time . | . . Total Part Build Rating . | . . Part Studies Acquired . | . . Parts Repaired 1 | . 1 Time 26 | . 26 Parts Recycled . | . . Recycled Matter . | . . Retrieved Matter . | . . Retrieved Components . | . . Parts Scanalyzed . | . . Part Schematics Acquired . | . . Parts Damaged . | . . Bothacking | -11 -10 ------------ Run | Yrd Mat Used RIF Installer . | . . Robots Hacked . | . . Non-combat . | . . Combat . | . . Robot Hacks Applied . | . . Relay Couplers Released . | . . Fabnet Peak Effective % . | . . Robots Rewired . | . . Allies Hacked . | . . Hacks Repelled . | . . Allies | -11 -10 -------- Run | Yrd Mat Total Allies . | . . Largest Group . | . . Highest-Rated Group . | . . Highest-Rated Ally . | . . Total Orders . | . . Ally Attacks . | . . Total Damage . | . . Kills . | . . Allies Corrupted . | . . Allies Melted . | . . Intel | -11 -10 ------- Run | Yrd Mat Active Infowar (turns) 401 | . 401 Sensors 401 | . 401 Robot Analysis Total . | . . Derelict Logs Recovered . | . . Drone Launches . | . . Drone Recoveries . | . . Exploration | -11 -10 ------------- Run | Yrd Mat Turns Passed 837 | 65 772 Spaces Moved 299 | 44 255 Core 14 | 14 . Treads 178 | 27 151 Legs 107 | 3 104 Wheels . | . . Hover . | . . Flight . | . . Fastest Speed 50 | 50 120 Average Speed 189 | 122 200 Slowest Speed 400 | 160 400 Overloaded Moves . | . . Propulsion Burnouts . | . . Robots Hopped . | . . Potential Cave-ins . | . . Cave-ins Triggered . | . . Exploration Rate (%) 25 | 4 47 Regions Visited 1 Branch Regions . Pre-discovered Areas . | . . Known Exits Taken . | . . Unknown Exits Taken 1 | 1 . Scrap Searched . | . . Spaces Dug . | . . Terrain Destroyed 42 | . 42 Melee . | . . Projectile . | . . AOE 42 | . 42 Terrain Rammed . | . . Walls Destroyed . | . . Machines Disabled . | . . Actions | -11 -10 --------- Run | Yrd Mat Total 516 | 54 462 Wait 128 | . 128 Move 298 | 43 255 Hop . | . . Pick Up 15 | 5 10 Fast Attach 2 | 2 . Attach 9 | 3 6 Detach . | . . Swap 4 | 1 3 Drop 4 | . 4 Fire 51 | . 51 Melee . | . . Ram . | . . Kick 3 | . 3 Crush 2 | . 2 Escape Stasis . | . . Rewire . | . . Trap . | . . Miscellaneous . | . . Route ------- -11/Scrapyard -10/Materials (discovered 2 exits: [*Mat x2]) History --------- Turn | Location | Event 3 | -11/Scrapyard | Discovered new exit (range 15) 66 | -11/Scrapyard | Entered Materials 240 | -10/Materials | Discovered new exit (range 3) 305 | -10/Materials | Build established: Mutant 372 | -10/Materials | Discovered new exit (range 16) 627 | -10/Materials | Repaired Sensor Array 784 | -10/Materials | Core integrity fell below 50% 806 | -10/Materials | Core integrity fell below 20% 838 | -10/Materials | Destroyed by G-34 Mercenary with Small Laser Last Messages --------------- 00619_ R-06 Scavenger collects Sml. Storage Unit. 00627_ Repair station completes Sensor Array repairs. 00631_ Acquired Sensor Array. 00773_ G-34 Mercenary destroyed. 00781_ Lgt. Ion Engine destroyed. 00782_ K-01 Serf collects debris. 00805_ R-06 Scavenger collects Heat Sink. 00808_ R-06 Scavenger collects Sml. Laser. 00809_ Sml. Laser destroyed. 00810_ Dropped Huge Storage Unit. 00811_ R-06 Scavenger collects Aluminum Leg. 00811_ Kicked R-06 Scavenger out of the way. 00817_ Kicked K-01 Serf out of the way. 00818_ K-01 Serf sends out distress signal. 00818_ Critical hit (Burn: +37). 00822_ Sensor Array destroyed. 00831_ Kicked U-05 Engineer. 00835_ Aluminum Leg destroyed. Map ----- +----------------------------------------------------+ | | | | | | | | | | | | | | | | | | | | | ?????????????????????????????????????????????????? | | ?????????????????????????????????????????????????? | | ???????????????????????## ##??????????????????? | | ???????????????????????# #??????????????????? | | ???????????#######?????# #??##########??????? | | ??????????? ####### ##??# #??????? | | ??????????? #???# """ ####???? | | ???????????####+############+##### """ # #???? | | ???????????# ## # ## """ # #???? | | ???????????# """ ## < # """ ## + /???? | | ???????????# """ ## # """ ## " " # #???? | | ???????????# """ ## ^ + """ ## "R" # #???? | | ???????????# ## # ## """ # #??? | | ???????????# """ ## # ## !# ####+ | | ???????????# """ ## ################## %+ | | ???????????# """ ## @ g # ! | | ???????????# ## g # | | ???????????########### T ######+## ########## | | ???????????????????### ## # #????????? | | ???????????????????#"" ! ## # ####?????? | | ???????????????????#"Y ## + # | | ???????????????????#"" ## ! # T ? | | ???????????????????###a """ ## ## ## # | | ?????????????????????# """ ## ## #?????# | | ?????????#######?????# """ ## ## #?????? | | ?????????# #######u ## ##+##+#?????? | | ?????????# ## # ???????? | | ?????????+ ## ! # ???????? | | ?????????# ## # ???????? | | ?????????# !! ## # ???????? | | ?????????### !! #############???????? | | ############ ! ???????? | | # ## ^ ???????? | | # ## = ????????? | | # """ """ ## %##########################????????? | | # """ """ ## # #???????????????????????????????? | | # """ """ ## =# #???????????????????????????????? | | # ## = ###???????????????????????????????? | | ####+####### ########??????????????????????????? | | = #??????????????????????????? | +----------------------------------------------------+ Best States ------------- Heat Dissipation 25 Energy Generation 10 Energy Capacity 250 Matter Stores 300 Matter Capacity 300 Sight Range 16 Robot Scan Range 14 Terrain Scan Density 10 Evasion (%) 55 Recoil Reduction 2 Item Schematics ----------------- None Robot Schematics ------------------ None Fabricated ------------ Nothing Repaired ---------- Sensor Array | 25% | -10/Materials Studied --------- None Alien Tech Used ----------------- None Achievements -------------- None Challenges ------------ None Game ------ Seed SmartColdMount Manual? 0 Play Time 00:07:57 Cumulative 15.1 hours Start 2025.10.24 @ 20:09:17 End 2025.10.24 @ 20:16:26 Sessions 1 Manual Loads 0 Difficulty Rogue Special Mode None Game No. 47 Rogue 47 Adventurer 0 Explorer 0 Win Type - Total 0 Types 0/0/0/0/0/0/0/0/0/0 Lore% 9 Gallery% 19 Achievement% 15 Wizard Run 0 Options --------- Layout 1 ASCII 0 Keyboard 0 Movement Mouse Keybinds 0 Fullscreen 1 Font 32/SmallcapsGlow Map View 50x35 Zoom Use 0% Tactical HUD 1 Map Filters NONE Filters NONE Steam 1 RUN: 45fb5a19-00d1-42c4-b363-0bf5ea41f15c